bitfinex/quotes_ETHUSD_20220219
["timestamp","ask_amount","ask_price","bid_price","bid_amount"]
[1645267970410,2.43110682,2776.0,2775.1,0.6674]
[1645267970614,1.53020682,2775.9,2775.1,0.6674]
[1645267970810,0.00220108,2775.8,2775.1,0.6674]
[1645267971458,0.00220108,2775.8,2775.1,1.5683]
[1645267971659,0.01024548,2776.1,2775.2,0.521]
[1645267971861,0.00220114,2775.6,2775.2,0.521]
[1645267972459,0.00220114,2775.6,2775.3,1.80151]
[1645267972764,0.01617362,2776.1,2775.4,0.521]
[1645267972959,1.53013796,2776.0,2775.4,0.521]
[1645267973160,0.00220114,2775.6,2775.4,0.521]
[1645267973959,0.90094,2775.9,2775.4,0.521]
[1645267974359,0.00220113,2775.6,2775.4,0.521]
[1645267975209,0.90088,2776.0,2775.4,0.521]
[1645267975607,0.00220113,2775.6,2775.4,0.521]
[1645267976507,2.4310978,2775.9,2775.4,0.521]
[1645267976707,0.00220113,2775.6,2775.4,0.521]
[1645267977710,2.43107073,2776.0,2775.4,0.521]
[1645267977912,0.00220113,2775.6,2775.4,0.521]
[1645267978763,1.53019933,2776.0,2775.4,0.521]
[1645267978963,0.00220113,2775.6,2775.4,0.521]
[1645267979963,1.53019933,2776.0,2775.4,0.521]
[1645267980166,1.53019933,2776.0,2775.4,1.42183]
[1645267980365,0.00220113,2775.6,2775.4,0.521]
[1645267980764,0.56304694,2775.3,2775.1,2.1090685]
[1645267980964,0.56304694,2775.3,2775.2,0.521]
[1645267981369,0.56304694,2775.3,2774.6,1.3311301]
[1645267981566,0.56304694,2775.3,2774.5,1.05704625]
[1645267981567,0.56524813,2775.3,2774.5,1.05704625]
[1645267982068,0.56524813,2775.3,2774.5,2.85903625]
[1645267982267,0.56524813,2775.3,2774.7,0.93437225]
[1645267982529,0.56304694,2775.3,2774.8,0.90098]
[1645267982719,0.00220126,2775.0,2774.8,0.90098]
[1645267983718,0.56304694,2775.3,2774.8,1.80196]
[1645267983921,0.00220126,2775.0,2774.8,1.80196]
[1645267984118,0.00220126,2775.0,2774.8,0.90098]
[1645267984319,0.00220126,2775.0,2774.7,0.90105]
[1645267984831,0.56304694,2775.3,2774.7,0.90105]
[1645267985019,0.56304694,2775.3,2774.7,1.80211]
[1645267985020,0.00220127,2775.0,2774.7,1.80211]
[1645267985420,0.00220127,2775.0,2774.7,2.7031214]
[1645267985623,0.00220127,2775.0,2774.7,1.8020614]
[1645267985822,0.00220127,2775.0,2774.8,0.901]
[1645267986022,0.56304694,2775.3,2774.9,1.16791804]
[1645267986271,0.00220127,2775.0,2774.9,1.16791804]
[1645267986466,0.00220127,2775.0,2774.8,0.901]
[1645267987264,0.56304694,2775.3,2774.8,0.901]
[1645267987466,0.00220126,2775.0,2774.9,1.17921356]
[1645267987765,0.00220126,2775.0,2774.9,2.08020356]
[1645267988365,0.56304694,2775.3,2774.9,2.08020356]
[1645267988565,0.00159287,2775.1,2774.9,2.08020356]
[1645267988764,0.00159287,2775.1,2774.9,4.40313946]
[1645267989565,0.56304694,2775.3,2774.9,4.40313946]
[1645267989776,0.00220384,2775.1,2774.9,2.60120356]
[1645267990811,0.56304694,2775.3,2774.9,2.60120356]
[1645267991008,0.56304694,2775.3,2774.9,4.40315696]
[1645267991209,0.00220384,2775.1,2774.9,4.40315696]
[1645267991910,0.00220384,2775.1,2775.0,3.5]
[1645267992113,0.56304694,2775.3,2775.0,0.521]
[1645267992310,0.56304694,2775.3,2775.1,0.90081]
[1645267992509,0.56304694,2775.3,2775.2,1.4218]
[1645267993609,0.56304694,2775.3,2775.2,0.521]
[1645267999315,0.56304694,2775.3,2775.2,2.32264]
[1645268000215,0.51304694,2775.3,2775.2,0.521]
[1645268002772,2.0432788,2775.3,2775.2,0.521]
[1645268003975,2.0432788,2775.3,2775.2,1.42193]
[1645268006812,0.51304694,2775.3,2775.2,1.42193]
[1645268008213,2.04324087,2775.3,2775.2,1.42193]
[1645268009268,0.51304694,2775.3,2775.2,1.42193]
[1645268011072,2.04321293,2775.3,2775.2,1.42193]
[1645268016964,2.04321293,2775.3,2775.0,0.90095]
[1645268017168,1.53016599,2775.2,2775.0,0.90095]
[1645268018863,1.53236981,2775.2,2775.0,0.90095]
[1645268019765,1.53016599,2775.2,2775.0,0.90095]
[1645268020017,1.53236981,2775.2,2775.0,0.90095]
[1645268020816,1.53016599,2775.2,2775.0,0.90095]
[1645268021217,1.53236981,2775.2,2775.0,0.90095]
[1645268022021,1.53016599,2775.2,2775.0,0.90095]
[1645268022419,1.53236981,2775.2,2775.0,1.8018718]
[1645268022618,1.53236981,2775.2,2775.1,0.9009]
[1645268022819,0.00220382,2775.2,2775.1,1.4219]
[1645268023022,1.5324491,2775.2,2775.1,1.4219]
[1645268023420,1.53024528,2775.2,2775.1,2.3228]
[1645268026065,0.51525075,2775.3,2775.1,2.3228]
[1645268026263,0.51525075,2775.3,2775.2,0.9009]
[1645268026463,0.51525075,2775.3,2775.2,1.4219]
[1645268026865,0.51304694,2775.3,2775.2,1.4219]
[1645268031024,0.68023906,2775.7,2775.3,10.0]
[1645268031281,1.72567562,2776.3,2775.6,0.91363264]
[1645268031282,0.68040375,2776.3,2775.6,0.91363264]
[1645268031478,0.92337348,2776.5,2775.6,0.91363264]
[1645268031479,0.01616848,2776.5,2775.9,0.0680239]
[1645268031676,0.01616848,2776.5,2776.0,0.68739047]
[1645268031877,0.01616848,2776.5,2776.0,1.42146]
[1645268032080,0.01616848,2776.5,2776.2,2.80262547]
[1645268032277,0.01616848,2776.5,2776.3,0.521]
[1645268032480,0.01616848,2776.5,2776.3,1.42145]
[1645268032875,0.01616848,2776.5,2776.3,2.3219]
[1645268033077,0.0177613,2776.5,2776.3,2.3219]
[1645268033278,0.0177613,2776.5,2776.4,1.80089]
[1645268033479,0.0177613,2776.5,2776.4,2.32189]
[1645268033881,0.0177613,2776.5,2776.4,0.521]
[1645268034077,0.01616848,2776.5,2776.4,0.521]
[1645268036824,0.01616848,2776.5,2776.3,0.90056]
[1645268037526,0.01616848,2776.5,2776.3,1.8011]
[1645268038026,0.01837457,2776.5,2776.3,2.701618]
[1645268038628,0.01837457,2776.5,2776.3,3.222618]
[1645268038865,0.01616848,2776.5,2776.3,3.222618]
[1645268039267,0.01837457,2776.5,2776.3,3.222618]
[1645268040066,0.01616848,2776.5,2776.3,3.222618]
[1645268040370,0.01837457,2776.5,2776.3,3.222618]
[1645268041267,0.01616848,2776.5,2776.3,3.222618]
[1645268041470,0.01837457,2776.5,2776.3,8.222618]
[1645268042522,0.01616848,2776.5,2776.3,8.222618]
[1645268042715,0.01837457,2776.5,2776.3,8.222618]
[1645268043317,0.01837457,2776.5,2775.7,3.21677808]
[1645268043627,0.01837457,2776.5,2774.4,0.68451425]
[1645268043628,5.01251285,2775.8,2774.4,0.68451425]
[1645268043823,5.01251285,2775.8,2774.0,1.94064691]
[1645268043824,0.01252935,2774.5,2774.3,0.68451425]
[1645268044219,4.021,2775.0,2774.1,0.68451425]
[1645268044522,0.25,2775.2,2774.3,1.16782148]
[1645268044725,1.86967459,2775.7,2774.3,1.16782148]
[1645268044726,2.70405,2775.5,2774.3,1.16782148]
[1645268045019,4.6417,2775.7,2774.3,1.16782148]
[1645268045219,3.5,2775.6,2774.3,2.08050715]
[1645268045422,3.5,2775.6,2774.6,0.00207576]
[1645268045619,3.5,2775.6,2774.8,0.16176374]
[1645268045822,2.04480738,2775.7,2774.8,0.16176374]
[1645268046019,5.54480738,2775.7,2774.8,0.16176374]
[1645268046266,1.53024319,2775.6,2774.8,0.16176374]
[1645268046566,1.53024319,2775.6,2774.9,0.00207558]
[1645268047466,1.53024319,2775.6,2774.4,1.36319345]
[1645268047668,1.53024319,2775.6,2774.9,0.00207558]
[1645268048572,1.53024319,2775.6,2774.6,0.88536868]
[1645268048767,1.53024319,2775.6,2774.9,0.00207558]
[1645268049870,1.53024319,2775.6,2774.8,0.521]
[1645268050115,1.53024319,2775.6,2774.9,0.00207558]
[1645268050313,5.03024319,2775.6,2774.9,0.00207558]
[1645268050521,1.53024319,2775.5,2774.9,0.00207558]
[1645268050717,2.04480611,2775.7,2774.9,0.00207558]
[1645268050914,1.53025556,2775.6,2774.8,0.521]
[1645268051316,1.53025556,2775.6,2774.9,0.00207558]
[1645268051515,5.03025556,2775.6,2774.9,0.00207558]
[1645268051715,1.53025556,2775.5,2774.9,0.00207558]
[1645268052115,1.53025556,2775.5,2774.8,0.521]
[1645268052315,1.53025556,2775.5,2774.9,0.00207558]
[1645268052916,0.90310608,2775.7,2774.9,0.00207558]
[1645268053115,1.53027346,2775.6,2774.9,0.00207558]
[1645268053319,1.53027346,2775.6,2774.8,0.521]
[1645268053766,1.53027346,2775.6,2774.9,0.00207558]
[1645268054268,5.03027346,2775.6,2774.9,0.00207558]
[1645268054466,1.53027346,2775.5,2774.9,0.00207558]
[1645268054669,1.53027346,2775.5,2774.8,0.521]
[1645268054869,0.90310611,2775.7,2774.9,0.00207558]
[1645268055067,1.53029749,2775.6,2774.9,0.00207558]
[1645268055873,1.53029749,2775.6,2774.8,0.521]
[1645268056068,1.53029749,2775.6,2774.9,0.00207558]
[1645268056269,5.03029749,2775.6,2774.9,0.00207558]
[1645268056467,1.53029749,2775.5,2774.9,0.00207558]
[1645268056666,2.57840321,2775.5,2774.9,0.00207558]
[1645268056867,1.04810572,2775.5,2774.9,0.00207558]
[1645268057068,1.04810572,2775.5,2774.8,0.521]
[1645268057270,1.04810572,2775.5,2774.9,0.00207558]
[1645268058118,1.04810572,2775.5,2774.8,0.521]
[1645268058317,0.9009,2775.7,2774.8,0.521]
[1645268058522,1.53030376,2775.6,2774.9,0.00207558]
[1645268059320,1.53030376,2775.6,2774.8,0.521]
[1645268059521,5.03030376,2775.6,2774.9,0.00207558]
[1645268059721,1.53030376,2775.5,2774.9,0.00207558]
[1645268060621,1.53030376,2775.5,2774.8,0.521]
[1645268060821,1.53030376,2775.5,2774.9,0.00207558]
[1645268061268,2.43122376,2775.5,2774.9,0.00207558]
[1645268061470,0.90092,2775.5,2774.9,0.00207558]
[1645268061869,0.90092,2775.5,2774.8,0.521]
[1645268062068,0.90092,2775.5,2774.9,0.00207558]
[1645268064271,0.90092,2775.5,2774.8,0.521]
[1645268064469,0.90092,2775.5,2774.9,0.00207558]
[1645268065316,0.90092,2775.5,2774.8,0.521]
[1645268065715,0.90092,2775.5,2774.9,0.00207558]
[1645268066515,0.90092,2775.5,2774.8,0.521]
[1645268066916,0.90094,2775.3,2774.9,0.00207558]
[1645268067717,0.90094,2775.3,2774.8,0.521]
[1645268068120,0.89959611,2775.3,2774.9,0.00207558]
[1645268068969,0.89959611,2775.3,2774.8,0.521]
[1645268069165,0.9009826,2775.2,2774.9,0.00207558]
[1645268069768,3.5,2775.1,2774.9,0.00207558]
[1645268070167,3.5,2775.1,2774.4,1.1858]
[1645268070368,0.90115,2774.8,2774.4,1.1858]
[1645268070571,0.90115,2774.8,2774.2,6.0662]
[1645268070766,5.3025166,2774.9,2774.2,0.521]
[1645268070967,5.3025166,2774.9,2774.0,8.02491514]
[1645268071767,5.3025166,2774.9,2774.3,0.00207599]
[1645268072266,0.90126,2774.6,2774.3,0.00207599]
[1645268072519,0.90126,2774.6,2774.0,8.02491514]
[1645268072919,0.90126,2774.6,2774.3,0.00207599]
[1645268073316,1.80252,2774.6,2774.3,0.00207599]
[1645268073516,2.7037558,2774.6,2774.3,0.00207599]
[1645268073717,2.7037558,2774.6,2774.0,8.02491514]
[1645268074021,4.5062658,2774.6,2774.3,0.00207599]
[1645268075020,4.5062658,2774.6,2774.0,8.02491514]
[1645268075218,4.5062658,2774.6,2774.3,0.00207599]
[1645268076269,4.5062658,2774.6,2774.0,8.02491514]
[1645268076568,4.5062658,2774.6,2774.3,0.00207599]
[1645268076967,8.0062658,2774.6,2774.3,0.00207599]
[1645268077369,8.0062658,2774.6,2774.0,7.49]
[1645268077568,0.9014172,2774.3,2774.0,7.49]
[1645268077773,4.40142,2774.2,2774.0,7.49]
[1645268077970,3.5,2774.1,2774.0,7.49]
[1645268078771,2.7043469,2774.2,2774.0,7.49]
[1645268079274,6.2043469,2774.2,2774.0,7.49]
[1645268079469,6.2043469,2774.2,2773.5,0.1802]
[1645268079470,4.4014669,2774.2,2773.5,0.1802]
[1645268079672,0.90136,2774.0,2773.4,14.3063]
[1645268079869,0.90136,2774.0,2773.4,8.6595]
[1645268080324,1.80278,2774.0,2773.4,8.6595]
[1645268080626,2.7041352,2774.0,2773.4,8.6595]
[1645268080821,0.9014,2773.9,2773.4,8.6595]
[1645268081221,1.80272,2774.2,2773.6,0.00207655]
[1645268081424,3.0775,2774.4,2773.6,0.52307655]
[1645268082222,0.90125,2774.3,2773.6,0.521]
[1645268082527,1.8025474,2774.3,2773.9,0.00207632]
[1645268083321,1.8025474,2774.3,2773.6,0.521]
[1645268083526,0.90131,2774.2,2773.6,0.521]
[1645268083770,0.90131,2774.2,2774.0,0.00207625]
[1645268084378,1.80264,2774.2,2774.0,0.00207625]
[1645268084579,1.80264,2774.2,2773.6,0.521]
[1645268084773,1.8028282,2774.0,2773.6,0.521]
[1645268085775,0.90144,2773.9,2773.6,0.521]
[1645268085975,0.90144,2773.9,2773.7,0.00207647]
[1645268086177,1.80284,2773.9,2773.7,0.00207647]
[1645268087086,1.80284,2773.9,2773.6,0.521]
[1645268087281,1.80284,2773.9,2773.7,0.00207647]
[1645268088124,1.80284,2773.9,2773.6,0.521]
[1645268088323,0.9014,2773.9,2773.6,0.521]
[1645268088523,0.9014,2773.9,2773.7,0.00207647]
[1645268088725,1.8028251,2773.9,2773.7,0.00207647]
[1645268089524,1.8028251,2773.9,2773.6,0.521]
[1645268089734,2.7042551,2773.9,2773.6,0.521]
[1645268090826,0.9014,2773.9,2773.6,0.521]
[1645268091671,0.90009318,2773.9,2773.6,0.521]
[1645268093275,0.90009318,2773.9,2773.6,0.52307651]
[1645268093476,0.90009318,2773.9,2773.6,0.52651473]
[1645268094277,0.90009318,2773.9,2773.6,0.52443822]
[1645268094477,0.90009318,2773.9,2773.6,0.52651473]
[1645268095331,0.90009318,2773.9,2773.6,0.52443822]
[1645268095530,0.90009318,2773.9,2773.6,0.52651473]
[1645268095531,1.80149318,2773.9,2773.6,0.52651473]
[1645268096531,1.80149318,2773.9,2773.6,0.52443822]
[1645268096930,1.80149318,2773.9,2773.6,0.52651473]
[1645268097542,2.70289478,2773.9,2773.6,0.52651473]
[1645268097736,0.90139,2773.8,2773.6,0.52651473]
[1645268099173,0.90139,2773.8,2773.6,0.52651477]
[1645268099974,0.90139,2773.8,2773.6,0.00551477]
[1645268099975,2.7042396,2773.8,2773.6,0.00551477]
[1645268100180,2.7042396,2773.8,2773.6,0.00343822]
[1645268100375,1.80282,2773.8,2773.4,7.49343822]
[1645268100575,0.90149,2773.7,2773.6,0.00207655]
[1645268100774,0.90139,2773.8,2773.6,0.00207655]
[1645268100976,1.8029736,2773.7,2773.6,0.00207655]
[1645268101375,1.8029736,2773.7,2773.4,7.49343822]
[1645268101575,0.9014836,2773.7,2773.4,7.49343822]
[1645268101777,0.9014836,2773.7,2773.5,0.00207659]
[1645268102376,0.90154,2773.7,2773.5,0.00207659]
[1645268102623,0.90154,2773.6,2773.4,7.49343822]
[1645268102830,1.80307,2773.6,2773.4,7.49343822]
[1645268103024,1.80307,2773.6,2773.5,0.00207662]
[1645268103225,4.40154,2773.6,2773.5,0.00207662]
[1645268103827,4.40154,2773.6,2773.4,0.00343822]
[1645268104026,0.90179,2773.5,2773.2,0.00343822]
[1645268104224,0.90179,2773.5,2773.4,0.00207666]
[1645268104225,2.65438214,2773.5,2773.4,0.00207666]
[1645268104624,1.80358,2773.5,2773.4,0.00207666]
[1645268105123,1.80358,2773.5,2772.8,0.00343822]
[1645268105124,5.410495,2773.5,2772.8,0.00343822]
[1645268105331,1.80345,2773.3,2772.8,0.00343822]
[1645268105524,0.9017178,2773.2,2772.8,0.00343822]
[1645268105723,0.90172,2773.3,2772.8,0.00343822]
[1645268106375,0.90172,2773.3,2772.6,0.91612389]
[1645268106672,0.90172,2773.3,2772.9,0.00207704]
[1645268106673,0.90167,2773.1,2772.9,0.00207704]
[1645268106874,1.80334,2773.1,2772.9,0.00207704]
[1645268107269,2.705,2773.1,2772.9,0.00207704]
[1645268107469,3.6066587,2773.1,2772.8,0.00343822]
[1645268107672,3.6066587,2773.1,2772.9,0.00207707]
[1645268108574,3.6066587,2773.1,2772.8,0.00343822]
[1645268108976,3.6066587,2773.1,2772.9,0.00207707]
[1645268109374,0.90168,2773.0,2772.9,0.00207707]
[1645268110029,0.90168,2773.0,2772.8,0.00551533]
[1645268110228,0.90168,2773.0,2772.8,0.00207711]
[1645268111036,0.90168,2773.0,2772.7,0.91612389]
[1645268111037,1.80338,2773.0,2772.7,0.91612389]
[1645268111233,1.80338,2773.0,2772.8,0.00207715]
[1645268111632,3.5,2773.5,2772.8,0.00207715]
[1645268111633,3.6067201,2774.4,2773.0,10.0]
[1645268111834,11.25,2774.8,2773.7,0.01236126]
[1645268111835,1.53102548,2774.3,2773.7,0.01236126]
[1645268112036,0.86070375,2774.8,2773.8,0.521]
[1645268112037,1.53102548,2774.8,2773.8,0.521]
[1645268112238,4.9423,2774.9,2773.8,12.65248141]
[1645268112434,1.53074191,2774.8,2774.1,6.514]
[1645268112635,0.25,2775.2,2774.2,0.521]
[1645268112834,1.53061482,2775.1,2774.4,0.90104]
[1645268113036,1.53061482,2775.1,2774.5,0.521]
[1645268113337,7.90264767,2776.2,2774.5,0.521]
[1645268113338,0.25222538,2775.7,2774.5,16.06582848]
[1645268113532,1.53042981,2775.6,2774.5,16.06582848]
[1645268113772,1.53042981,2775.6,2774.9,0.90092]
[1645268113973,1.53042981,2775.6,2775.0,0.521]
[1645268114172,1.53042981,2775.6,2775.0,1.38736437]
[1645268114373,1.53042981,2775.6,2775.1,0.9009035]
[1645268114576,1.53042981,2775.6,2775.2,0.521]
[1645268114781,0.0058985,2776.0,2775.2,0.521]
[1645268114975,0.00218495,2775.7,2775.2,3.22342]
[1645268115175,0.00218495,2775.7,2775.3,0.9007753]
[1645268115374,0.00218495,2775.7,2775.4,0.521]
[1645268115982,1.53007202,2776.2,2775.5,1.80148]
[1645268116175,1.53007202,2776.2,2775.7,0.90066]
[1645268116176,0.0058985,2776.1,2775.7,0.90066]
[1645268116373,1.53007202,2776.0,2775.8,0.521]
[1645268116776,0.00873825,2776.3,2775.8,0.521]
[1645268116978,1.53000939,2776.2,2775.8,0.521]
[1645268117182,1.53590789,2776.2,2775.8,0.521]
[1645268117376,1.53000939,2776.1,2775.8,0.521]
[1645268117638,1.53000939,2776.1,2775.9,0.90063]
[1645268117837,1.53000939,2776.1,2775.9,0.521]
[1645268118037,0.00211493,2776.2,2775.9,1.4216253]
[1645268118442,1.50637275,2776.4,2775.9,1.4216253]
[1645268118640,0.00193752,2776.2,2775.9,3.2228153]
[1645268119036,1.50831027,2776.2,2775.9,3.2228153]
[1645268119236,0.00193752,2776.2,2775.9,3.2228153]
[1645268119640,0.0058985,2776.3,2775.9,4.1234453]
[1645268119839,1.5083452,2776.2,2775.9,4.1234453]
[1645268120138,0.00193752,2776.2,2775.9,4.1234453]
[1645268120540,0.00193752,2776.2,2775.9,1.42163]
[1645268120737,0.0058985,2776.3,2775.9,1.88485085]
[1645268120939,0.00188326,2776.2,2775.9,1.88485085]
[1645268121142,0.00188326,2776.2,2775.9,1.42163]
[1645268121581,0.00188326,2776.2,2775.9,0.521]
[1645268121981,0.01616848,2776.5,2775.9,0.521]
[1645268122184,0.00189581,2776.2,2775.9,0.521]
[1645268123081,1.50229373,2776.4,2775.9,0.521]
[1645268123280,1.50819223,2776.4,2775.9,0.521]
[1645268123482,0.00189581,2776.2,2775.9,0.521]
[1645268124383,1.50231737,2776.4,2775.9,0.521]
[1645268124583,0.00190802,2776.2,2775.9,0.521]
[1645268125424,0.00190802,2776.2,2775.9,1.4217077]
[1645268125625,0.0058985,2776.3,2775.9,1.4217077]
[1645268125826,0.001909,2776.2,2776.0,0.90067]
[1645268126025,0.001909,2776.2,2776.1,0.521]
[1645268126830,0.01616848,2776.5,2776.1,7.035]
[1645268127028,0.00190898,2776.3,2776.1,7.035]
[1645268127328,0.01616848,2776.5,2776.3,10.0]
[1645268127529,0.0058985,2777.2,2776.5,8.5]
[1645268127727,2.5,2777.5,2777.0,0.25245946]
[1645268127728,0.0058985,2777.4,2777.0,0.25245946]
[1645268127929,0.0058985,2777.4,2777.1,0.521]
[1645268128429,0.0058985,2777.4,2777.1,1.42128]
[1645268128893,0.0058985,2777.4,2777.1,2.32155]
[1645268129285,3.2569,2778.2,2777.1,2.32155]
[1645268129487,0.00561493,2777.8,2777.4,0.90013]
[1645268129692,0.00561493,2777.8,2777.5,0.521]
[1645268130087,0.00561493,2777.8,2777.5,1.42102]
[1645268130289,0.25,2778.6,2777.5,1.42102]
[1645268130490,2.5,2778.7,2778.4,0.93823589]
[1645268130790,2.5,2778.7,2777.8,2.6994423]
[1645268130791,0.00561493,2778.2,2777.8,2.6994423]
[1645268130992,0.00561493,2778.2,2777.8,4.1202723]
[1645268131399,0.00561493,2778.2,2777.9,4.39985]
[1645268131588,0.04206333,2778.5,2778.1,8.3133705]
[1645268131787,0.04206333,2778.5,2778.2,0.521]
[1645268131988,2.75,2779.2,2778.2,0.521]
[1645268131989,0.04149491,2778.4,2778.2,1.42069]
[1645268132187,0.04149491,2778.4,2778.3,6.514]
[1645268132388,0.00811794,2778.6,2778.3,8.03370006]
[1645268132630,0.00811794,2778.6,2778.4,7.41366]
[1645268132826,0.04206333,2778.5,2778.4,9.2129702]
[1645268133222,0.0022281,2778.6,2778.4,9.2129702]
[1645268133423,0.0022281,2778.6,2778.5,0.521]
[1645268133825,0.04485986,2778.6,2778.5,0.521]
[1645268134028,0.04263176,2778.6,2778.5,4.021]
[1645268135524,0.04263176,2778.6,2778.5,0.521]
[1645268137376,0.04263176,2778.6,2778.5,4.021]
[1645268137580,0.1799,2779.6,2778.7,5.5]
[1645268137783,0.1799,2779.8,2778.8,0.12095825]
[1645268138277,2.5,2780.0,2778.8,0.12095825]
[1645268138477,2.5,2780.0,2779.4,0.8995482]
[1645268138680,2.5,2780.0,2779.5,0.521]
[1645268140139,2.5,2780.0,2779.5,2.3198388]
[1645268140340,0.00153079,2779.8,2779.5,2.3198388]
[1645268141038,0.00153079,2779.8,2779.6,1.7988185]
[1645268141237,0.00153079,2779.8,2779.7,0.521]
[1645268141537,0.00216626,2779.8,2779.7,0.521]
[1645268142139,0.00216626,2779.8,2779.7,1.4203736]
[1645268142342,0.00897816,2780.1,2779.8,1.798589]
[1645268142540,0.00897816,2780.1,2779.9,1.42029]
[1645268143139,0.00897816,2780.1,2780.0,1.01618897]
[1645268143440,0.00897816,2780.1,2780.0,1.53718897]
[1645268144573,0.00897816,2780.1,2780.0,5.03718897]
[1645268144782,2.5,2780.8,2780.1,9.5]
[1645268144974,2.51795632,2780.8,2780.6,1.1698279]
[1645268145178,2.51795632,2780.8,2780.7,0.521]
[1645268146075,0.01795632,2780.8,2780.7,0.521]
[1645268149830,0.01795632,2780.8,2780.7,1.42005]
[1645268153475,0.01795632,2780.8,2780.7,0.521]
[1645268156230,0.01795632,2780.8,2780.2,1.7984003]
[1645268156432,0.01795632,2780.8,2780.0,0.521]
[1645268157028,0.00222906,2780.5,2780.0,0.521]
[1645268157239,0.00222906,2780.5,2779.7,1.3866]
[1645268157240,0.00222906,2780.5,2779.7,0.25]
[1645268157435,0.00222906,2780.5,2779.3,0.521]
[1645268157633,0.89959,2780.2,2779.3,0.521]
[1645268157832,0.40981398,2779.2,2779.0,0.8996]
[1645268158129,0.40981398,2779.2,2779.1,1.05803575]
[1645268158531,0.40981398,2779.2,2779.0,0.521]
[1645268159390,0.40981398,2779.2,2778.6,0.1799]
[1645268159391,0.66204334,2779.2,2778.6,0.521]
[1645268159586,0.66204334,2779.2,2778.6,1.02732299]
[1645268159986,0.41204334,2779.2,2778.7,0.8997711]
[1645268160389,0.40981398,2779.2,2778.7,0.8997711]
[1645268160787,0.00222939,2779.1,2778.7,0.8997711]
[1645268161391,0.00222939,2779.1,2778.6,1.7993657]
[1645268161589,0.40981398,2779.2,2778.4,1.03800672]
[1645268161792,0.40981398,2779.2,2778.4,1.93784062]
[1645268161992,0.0022294,2779.0,2778.4,1.93784062]
[1645268162200,0.0022294,2779.0,2778.6,0.89973]
[1645268162628,0.0022294,2779.0,2778.6,1.42073]
[1645268162828,0.40981398,2779.2,2778.6,1.42073]
[1645268163229,0.00222942,2778.9,2778.6,3.22001]
[1645268163430,0.00222942,2778.9,2778.6,3.2200176]
[1645268164029,0.40981398,2779.2,2778.6,3.2200176]
[1645268164231,0.40981398,2779.2,2778.9,1.17588318]
[1645268164431,0.40981398,2779.2,2778.9,2.07553318]
[1645268164632,0.40981398,2779.2,2778.9,2.97520218]
[1645268164831,0.40981398,2779.2,2778.9,1.420669]
[1645268165037,0.40981398,2779.2,2778.9,0.521]
[1645268165632,0.41204335,2779.2,2778.9,0.521]
[1645268166584,0.40981398,2779.2,2778.9,0.521]
[1645268166883,0.41182065,2779.2,2778.9,0.521]
[1645268167693,0.40981398,2779.2,2778.9,0.521]
[1645268167886,0.41182065,2779.2,2778.9,0.521]
[1645268168888,0.40981398,2779.2,2778.9,0.521]
[1645268169090,0.41182065,2779.2,2778.9,1.4207123]
[1645268170038,0.40981398,2779.2,2778.9,1.4207123]
[1645268170236,0.41182065,2779.2,2778.9,1.4207123]
[1645268170629,0.41182065,2779.2,2779.0,1.79097499]
[1645268171129,0.40981398,2779.2,2779.0,1.79097499]
[1645268171341,0.03506856,2779.2,2779.0,1.79097499]
[1645268171533,0.03709012,2779.2,2779.1,0.521]
[1645268171930,0.03709012,2779.2,2779.1,0.78893703]
[1645268172129,0.03709012,2779.2,2779.1,0.60711616]
[1645268172534,0.03506856,2779.2,2779.1,0.60711616]
[1645268173536,0.03506856,2779.2,2779.1,0.78886392]
[1645268173784,0.03506856,2779.2,2779.1,0.92806392]
[1645268173985,0.03506856,2779.2,2779.1,1.10476392]
[1645268174184,0.03506856,2779.2,2779.1,1.10636392]
[1645268174386,0.03506856,2779.2,2779.1,1.10956392]
[1645268174585,0.03506856,2779.2,2779.1,1.10796392]
[1645268174785,0.03506856,2779.2,2779.1,1.10476392]
[1645268174988,0.03506856,2779.2,2779.1,1.10396392]
[1645268175186,0.03506856,2779.2,2779.1,0.96876392]
[1645268175389,0.03506856,2779.2,2779.1,0.92326392]
[1645268175589,0.03506856,2779.2,2779.1,0.92406392]
[1645268176092,0.03506856,2779.2,2779.1,0.92966392]
[1645268176289,0.03506856,2779.2,2779.1,0.92406392]
[1645268176588,0.03506856,2779.2,2779.1,0.78886392]
[1645268176790,0.03506856,2779.2,2779.1,0.96876392]
[1645268177630,0.03506856,2779.2,2779.1,1.16477355]
[1645268177830,0.03506856,2779.2,2779.1,1.29917355]
[1645268178036,0.03506856,2779.2,2779.1,1.30637355]
[1645268178232,0.03506856,2779.2,2779.1,1.30557355]
[1645268178432,0.03506856,2779.2,2779.1,1.29997355]
[1645268178632,6.856e-05,2779.2,2779.1,6.30077355]
[1645268178836,6.856e-05,2779.2,2779.1,6.30317355]
[1645268179129,6.856e-05,2779.2,2779.1,6.30957355]
[1645268179330,6.856e-05,2779.2,2779.1,6.30397355]
[1645268179531,6.856e-05,2779.2,2779.1,12.82837355]
[1645268179732,6.856e-05,2779.2,2779.1,13.68345418]
[1645268179931,6.856e-05,2779.2,2779.1,12.82757355]
[1645268180332,6.856e-05,2779.2,2779.1,29.68123355]
[1645268180538,6.856e-05,2779.2,2779.1,34.5602776]
[1645268180731,6.856e-05,2779.2,2779.1,34.5618776]
[1645268180936,0.01795632,2780.1,2779.2,9.5]
[1645268181134,0.00808125,2779.7,2779.6,5.0]
[1645268181384,0.00808125,2779.7,2779.6,6.71490585]
[1645268181582,0.01795632,2780.1,2779.7,9.5]
[1645268181784,0.01795632,2780.1,2780.0,6.514]
[1645268182085,0.01795632,2780.1,2780.0,7.93407]
[1645268182680,0.01795632,2780.1,2780.0,8.15556348]
[1645268183088,0.01795632,2780.1,2780.0,8.24167964]
[1645268185139,0.01795632,2780.1,2780.0,8.37847964]
[1645268185336,0.01795632,2780.1,2780.0,8.38007964]
[1645268185539,5.632e-05,2780.1,2780.0,8.74587964]
[1645268185845,0.00891521,2780.6,2780.5,0.899]
[1645268186039,0.00891521,2780.6,2780.5,0.521]
[1645268186242,1.29647738,2780.6,2780.5,0.521]
[1645268186639,1.29647738,2780.6,2780.5,1.51421868]
[1645268186840,1.28756217,2780.6,2780.5,1.51421868]
[1645268187039,1.28756217,2780.6,2780.5,2.41323868]
[1645268187237,1.28756217,2780.6,2780.5,2.36323868]
[1645268187638,0.00200817,2780.7,2780.5,3.26235868]